[Event "Titled Tuesday Blitz August 08 Early 2023"]
[White "Aslanov, Umid"]
[Black "Karas, Marek"]
[WhiteFideId "13412620"]
[BlackFideId "14928558"]
[WhiteElo "2586"]
[BlackElo "2447"]
[Result "1-0"]
[Round "6"]
[TimeControl "180+1"]
[Date "2023.08.08"]
[WhiteClock "0:01:24"]
[BlackClock "0:00:00"]
[Board "122"]

1. e4 {[%clk 0:03:00]}  e6 {[%clk 0:02:56]} 2. d4 {[%clk 0:03:00]}  d5 {[%clk 0:02:55]} 3. Nd2 {[%clk 0:03:01]}  a6 {[%clk 0:02:49]} 4. Ngf3 {[%clk 0:02:55]}  c5 {[%clk 0:02:49]} 5. exd5 {[%clk 0:02:56]}  exd5 {[%clk 0:02:50]} 6. dxc5 {[%clk 0:02:57]}  Bxc5 {[%clk 0:02:50]} 7. Nb3 {[%clk 0:02:58]}  Bb6 {[%clk 0:02:48]} 8. Bd3 {[%clk 0:02:58]}  Nf6 {[%clk 0:02:43]} 9. Qe2+ {[%clk 0:02:57]}  Qe7 {[%clk 0:02:39]} 10. Qxe7+ {[%clk 0:02:57]}  Kxe7 {[%clk 0:02:39]} 11. O-O {[%clk 0:02:58]}  Be6 {[%clk 0:02:34]} 12. Nbd4 {[%clk 0:02:57]}  Nc6 {[%clk 0:02:27]} 13. Nxe6 {[%clk 0:02:57]}  fxe6 {[%clk 0:02:24]} 14. Bg5 {[%clk 0:02:56]}  h6 {[%clk 0:02:20]} 15. Bh4 {[%clk 0:02:51]}  e5 {[%clk 0:02:14]} 16. Nxe5 {[%clk 0:02:42]}  Nxe5 {[%clk 0:02:11]} 17. Rae1 {[%clk 0:02:43]}  Kd6 {[%clk 0:01:52]} 18. Bg3 {[%clk 0:02:41]}  Rae8 {[%clk 0:01:44]} 19. Bg6 {[%clk 0:02:41]}  Re7 {[%clk 0:01:36]} 20. Rxe5 {[%clk 0:02:38]}  Rxe5 {[%clk 0:01:33]} 21. Re1 {[%clk 0:02:39]}  Nd7 {[%clk 0:01:29]} 22. Bf5 {[%clk 0:02:39]}  Re8 {[%clk 0:01:15]} 23. Bxd7 {[%clk 0:02:38]}  Kxd7 {[%clk 0:01:09]} 24. Rxe5 {[%clk 0:02:34]}  Rxe5 {[%clk 0:01:08]} 25. Bxe5 {[%clk 0:02:35]}  g6 {[%clk 0:01:08]} 26. c3 {[%clk 0:02:33]}  Ke6 {[%clk 0:01:07]} 27. Bd4 {[%clk 0:02:31]}  Bc7 {[%clk 0:01:00]} 28. g3 {[%clk 0:02:28]}  h5 {[%clk 0:00:59]} 29. Kg2 {[%clk 0:02:27]}  b5 {[%clk 0:00:57]} 30. f4 {[%clk 0:02:25]}  Bd6 {[%clk 0:00:53]} 31. Kf3 {[%clk 0:02:24]}  Bc7 {[%clk 0:00:53]} 32. h3 {[%clk 0:02:24]}  Bd6 {[%clk 0:00:53]} 33. Bb6 {[%clk 0:02:08]}  Be7 {[%clk 0:00:50]} 34. b3 {[%clk 0:01:56]}  Bf6 {[%clk 0:00:48]} 35. Bd4 {[%clk 0:01:56]}  Be7 {[%clk 0:00:48]} 36. a4 {[%clk 0:01:56]}  Bd6 {[%clk 0:00:42]} 37. a5 {[%clk 0:01:42]}  Bc7 {[%clk 0:00:33]} 38. b4 {[%clk 0:01:42]}  Bd6 {[%clk 0:00:31]} 39. Bb6 {[%clk 0:01:41]}  Be7 {[%clk 0:00:27]} 40. Ke3 {[%clk 0:01:42]}  Bf6 {[%clk 0:00:26]} 41. Bd4 {[%clk 0:01:42]}  Be7 {[%clk 0:00:25]} 42. Be5 {[%clk 0:01:42]}  Bf8 {[%clk 0:00:19]} 43. Kd4 {[%clk 0:01:39]}  Be7 {[%clk 0:00:19]} 44. g4 {[%clk 0:01:38]}  hxg4 {[%clk 0:00:17]} 45. hxg4 {[%clk 0:01:39]}  Bf8 {[%clk 0:00:15]} 46. Ke3 {[%clk 0:01:31]}  g5 {[%clk 0:00:11]} 47. Bd4 {[%clk 0:01:24]}  gxf4+ {[%clk 0:00:09]} 48. Kxf4 {[%clk 0:01:25]}  Be7 {[%clk 0:00:05]} 49. g5 {[%clk 0:01:23]}  Bd6+ {[%clk 0:00:02]} 50. Kg4 {[%clk 0:01:23]}  Kf7 {[%clk 0:00:01]} 51. Kf5 {[%clk 0:01:23]}  Bg3 {[%clk 0:00:00]} 52. g6+ {[%clk 0:01:24]} 1-0


[Site "https://www.chess.com"]

[Event "Titled Tuesday Blitz August 08 Early 2023"]
[White "Souleidis, Georgios"]
[Black "Chor, Kevin"]
[WhiteFideId "4206827"]
[BlackFideId "2090740"]
[WhiteElo "2545"]
[BlackElo "2517"]
[Result "1-0"]
[Round "6"]
[TimeControl "180+1"]
[Date "2023.08.08"]
[WhiteClock "0:00:46"]
[BlackClock "0:00:01"]
[Board "125"]

1. e4 {[%clk 0:03:00]}  c5 {[%clk 0:02:59]} 2. Be2 {[%clk 0:02:57]}  Nc6 {[%clk 0:02:58]} 3. d3 {[%clk 0:02:58]}  g6 {[%clk 0:02:56]} 4. f4 {[%clk 0:02:58]}  Bg7 {[%clk 0:02:55]} 5. Nf3 {[%clk 0:02:59]}  Rb8 {[%clk 0:02:54]} 6. O-O {[%clk 0:02:57]}  d6 {[%clk 0:02:52]} 7. c3 {[%clk 0:02:57]}  Bg4 {[%clk 0:02:48]} 8. h3 {[%clk 0:02:54]}  Bxf3 {[%clk 0:02:48]} 9. Bxf3 {[%clk 0:02:55]}  e6 {[%clk 0:02:45]} 10. Be3 {[%clk 0:02:53]}  Nge7 {[%clk 0:02:42]} 11. a4 {[%clk 0:02:46]}  O-O {[%clk 0:02:39]} 12. Na3 {[%clk 0:02:47]}  a6 {[%clk 0:02:28]} 13. d4 {[%clk 0:02:46]}  cxd4 {[%clk 0:02:24]} 14. cxd4 {[%clk 0:02:47]}  d5 {[%clk 0:02:20]} 15. e5 {[%clk 0:02:46]}  Nf5 {[%clk 0:02:12]} 16. Bf2 {[%clk 0:02:46]}  Qb6 {[%clk 0:02:12]} 17. Qd2 {[%clk 0:02:26]}  Nfxd4 {[%clk 0:01:58]} 18. Bd1 {[%clk 0:02:26]}  f6 {[%clk 0:01:51]} 19. a5 {[%clk 0:02:25]}  Qa7 {[%clk 0:01:34]} 20. exf6 {[%clk 0:02:21]}  Bxf6 {[%clk 0:01:35]} 21. Nc2 {[%clk 0:01:54]}  Rbc8 {[%clk 0:01:08]} 22. Bg4 {[%clk 0:01:35]}  Rfe8 {[%clk 0:00:53]} 23. Rad1 {[%clk 0:01:19]}  Nb3 {[%clk 0:00:48]} 24. Qe2 {[%clk 0:01:20]}  Ncd4 {[%clk 0:00:27]} 25. Nxd4 {[%clk 0:01:18]}  Bxd4 {[%clk 0:00:23]} 26. Bxe6+ {[%clk 0:00:56]}  Kg7 {[%clk 0:00:23]} 27. Rxd4 {[%clk 0:00:46]}  Nxd4 {[%clk 0:00:01]} 28. Qe5+ {[%clk 0:00:46]} 1-0


[Site "https://www.chess.com"]

[Event "Titled Tuesday Blitz August 08 Early 2023"]
[White "Palczert, Matyas"]
[Black "Lopez Del Alamo, Antonio"]
[WhiteFideId "784958"]
[BlackFideId "2227339"]
[WhiteElo "2533"]
[BlackElo "2359"]
[Result "0-1"]
[Round "6"]
[TimeControl "180+1"]
[Date "2023.08.08"]
[WhiteClock "0:00:00"]
[BlackClock "0:00:11"]
[Board "128"]

1. e4 {[%clk 0:03:00]}  c5 {[%clk 0:02:59]} 2. Nf3 {[%clk 0:03:00]}  e6 {[%clk 0:03:00]} 3. d4 {[%clk 0:02:59]}  cxd4 {[%clk 0:03:01]} 4. Bg5 {[%clk 0:03:00]}  Qa5+ {[%clk 0:02:52]} 5. c3 {[%clk 0:02:58]}  dxc3 {[%clk 0:02:50]} 6. Nxc3 {[%clk 0:02:58]}  Nc6 {[%clk 0:02:49]} 7. Bd2 {[%clk 0:02:57]}  Qc7 {[%clk 0:02:48]} 8. Bd3 {[%clk 0:02:51]}  Nf6 {[%clk 0:02:46]} 9. O-O {[%clk 0:02:50]}  Ng4 {[%clk 0:02:43]} 10. Nb5 {[%clk 0:02:47]}  Qb8 {[%clk 0:02:43]} 11. h3 {[%clk 0:02:33]}  h5 {[%clk 0:02:41]} 12. Qc1 {[%clk 0:02:20]}  a6 {[%clk 0:02:37]} 13. Nc3 {[%clk 0:02:04]}  Bd6 {[%clk 0:02:28]} 14. Re1 {[%clk 0:01:54]}  b5 {[%clk 0:01:38]} 15. hxg4 {[%clk 0:01:36]}  hxg4 {[%clk 0:01:37]} 16. e5 {[%clk 0:01:29]}  gxf3 {[%clk 0:01:21]} 17. exd6 {[%clk 0:01:27]}  Qxd6 {[%clk 0:01:18]} 18. Bf4 {[%clk 0:01:23]}  Qxd3 {[%clk 0:01:17]} 19. Ne4 {[%clk 0:01:19]}  fxg2 {[%clk 0:00:59]} 20. Bg3 {[%clk 0:00:46]}  Nd4 {[%clk 0:00:50]} 21. Nd6+ {[%clk 0:00:32]}  Kf8 {[%clk 0:00:45]} 22. Qf4 {[%clk 0:00:32]}  f6 {[%clk 0:00:25]} 23. Kxg2 {[%clk 0:00:30]}  Nf5 {[%clk 0:00:20]} 24. Nxf5 {[%clk 0:00:16]}  Qxf5 {[%clk 0:00:20]} 25. Qxf5 {[%clk 0:00:15]}  exf5 {[%clk 0:00:21]} 26. Bd6+ {[%clk 0:00:15]}  Kf7 {[%clk 0:00:21]} 27. Re7+ {[%clk 0:00:15]}  Kg6 {[%clk 0:00:21]} 28. Rg1 {[%clk 0:00:14]}  Rh5 {[%clk 0:00:17]} 29. f4 {[%clk 0:00:13]}  Rh4 {[%clk 0:00:17]} 30. Kf3+ {[%clk 0:00:11]}  Rg4 {[%clk 0:00:17]} 31. Rxg4+ {[%clk 0:00:11]}  fxg4+ {[%clk 0:00:17]} 32. Kxg4 {[%clk 0:00:11]}  Bb7 {[%clk 0:00:16]} 33. f5+ {[%clk 0:00:11]}  Kh7 {[%clk 0:00:16]} 34. Rxd7 {[%clk 0:00:11]}  Be4 {[%clk 0:00:15]} 35. Kf4 {[%clk 0:00:09]}  Bc2 {[%clk 0:00:14]} 36. Be7 {[%clk 0:00:09]}  Kh6 {[%clk 0:00:13]} 37. Bd8 {[%clk 0:00:08]}  Rc8 {[%clk 0:00:13]} 38. Rd2 {[%clk 0:00:08]}  Kh7 {[%clk 0:00:12]} 39. Rd4 {[%clk 0:00:06]}  Rc5 {[%clk 0:00:11]} 40. Be7 {[%clk 0:00:06]}  Rxf5+ {[%clk 0:00:11]} 41. Kg3 {[%clk 0:00:06]}  Rg5+ {[%clk 0:00:10]} 42. Kf4 {[%clk 0:00:06]}  Bf5 {[%clk 0:00:10]} 43. Rd5 {[%clk 0:00:04]}  Kg6 {[%clk 0:00:10]} 44. Bf8 {[%clk 0:00:04]}  Rg4+ {[%clk 0:00:11]} 45. Ke3 {[%clk 0:00:04]}  Re4+ {[%clk 0:00:11]} 46. Kf3 {[%clk 0:00:00]}  Re8 {[%clk 0:00:11]} 0-1


[Site "https://www.chess.com"]

[Event "Titled Tuesday Blitz August 08 Early 2023"]
[White "Ncatt"]
[Black "Berezin, Viktor"]
[BlackFideId "14107872"]
[WhiteElo "2341"]
[BlackElo "2530"]
[Result "0-1"]
[Round "6"]
[TimeControl "180+1"]
[Date "2023.08.08"]
[WhiteClock "0:01:44"]
[BlackClock "0:01:22"]
[Board "129"]

1. e4 {[%clk 0:03:00]}  c6 {[%clk 0:02:56]} 2. d4 {[%clk 0:03:00]}  d5 {[%clk 0:02:53]} 3. Nc3 {[%clk 0:03:01]}  dxe4 {[%clk 0:02:53]} 4. Nxe4 {[%clk 0:03:01]}  Nf6 {[%clk 0:02:53]} 5. Nxf6+ {[%clk 0:03:01]}  exf6 {[%clk 0:02:54]} 6. c3 {[%clk 0:03:01]}  Bd6 {[%clk 0:02:54]} 7. Bd3 {[%clk 0:03:01]}  O-O {[%clk 0:02:54]} 8. Qc2 {[%clk 0:03:01]}  Re8+ {[%clk 0:02:55]} 9. Ne2 {[%clk 0:03:01]}  h5 {[%clk 0:02:56]} 10. O-O {[%clk 0:03:02]}  h4 {[%clk 0:02:54]} 11. h3 {[%clk 0:03:02]}  Nd7 {[%clk 0:02:54]} 12. Bd2 {[%clk 0:02:59]}  Nf8 {[%clk 0:02:54]} 13. Rae1 {[%clk 0:02:59]}  Qc7 {[%clk 0:02:51]} 14. Qc1 {[%clk 0:02:58]}  Be6 {[%clk 0:02:43]} 15. Bf4 {[%clk 0:02:58]}  Bxa2 {[%clk 0:02:38]} 16. Bxd6 {[%clk 0:02:41]}  Qxd6 {[%clk 0:02:39]} 17. c4 {[%clk 0:02:41]}  b5 {[%clk 0:02:08]} 18. cxb5 {[%clk 0:02:39]}  cxb5 {[%clk 0:02:08]} 19. Bxb5 {[%clk 0:02:40]}  Rec8 {[%clk 0:02:07]} 20. Nc3 {[%clk 0:02:35]}  Qxd4 {[%clk 0:01:59]} 21. Qa1 {[%clk 0:02:19]}  Be6 {[%clk 0:01:51]} 22. Re4 {[%clk 0:02:18]}  Qd2 {[%clk 0:01:40]} 23. Rxh4 {[%clk 0:02:12]}  a6 {[%clk 0:01:39]} 24. Ba4 {[%clk 0:02:10]}  Rab8 {[%clk 0:01:30]} 25. Nd1 {[%clk 0:02:00]}  Bc4 {[%clk 0:01:25]} 26. b3 {[%clk 0:01:47]}  Bxf1 {[%clk 0:01:22]} 27. Kxf1 {[%clk 0:01:44]}  Rc1 {[%clk 0:01:22]} 0-1


[Site "https://www.chess.com"]

[Event "Titled Tuesday Blitz August 08 Early 2023"]
[White "Sreyas Payyappat"]
[Black "Fernandez Hernandez, Gerardo"]
[WhiteFideId "46674969"]
[BlackFideId "2207400"]
[WhiteElo "2522"]
[BlackElo "2258"]
[Result "1-0"]
[Round "6"]
[TimeControl "180+1"]
[Date "2023.08.08"]
[WhiteClock "0:02:11"]
[BlackClock "0:00:36"]
[Board "132"]

1. e4 {[%clk 0:03:00]}  e6 {[%clk 0:02:59]} 2. d4 {[%clk 0:03:00]}  d5 {[%clk 0:03:00]} 3. Nc3 {[%clk 0:03:01]}  Nc6 {[%clk 0:02:59]} 4. Nf3 {[%clk 0:03:00]}  Nf6 {[%clk 0:02:59]} 5. Bg5 {[%clk 0:02:59]}  Be7 {[%clk 0:02:56]} 6. e5 {[%clk 0:02:58]}  Ne4 {[%clk 0:02:56]} 7. Bxe7 {[%clk 0:02:53]}  Qxe7 {[%clk 0:02:56]} 8. Nxe4 {[%clk 0:02:53]}  dxe4 {[%clk 0:02:56]} 9. Nd2 {[%clk 0:02:53]}  Qb4 {[%clk 0:02:35]} 10. c3 {[%clk 0:02:47]}  Qxb2 {[%clk 0:02:27]} 11. Nxe4 {[%clk 0:02:46]}  Qa3 {[%clk 0:01:55]} 12. Bd3 {[%clk 0:02:42]}  h6 {[%clk 0:01:53]} 13. O-O {[%clk 0:02:41]}  Bd7 {[%clk 0:01:52]} 14. Rb1 {[%clk 0:02:39]}  b6 {[%clk 0:01:46]} 15. Bb5 {[%clk 0:02:36]}  Qxa2 {[%clk 0:01:20]} 16. Qf3 {[%clk 0:02:26]}  Qd5 {[%clk 0:01:09]} 17. Rfd1 {[%clk 0:02:18]}  Ne7 {[%clk 0:00:54]} 18. c4 {[%clk 0:02:14]}  Qb7 {[%clk 0:00:49]} 19. Bxd7+ {[%clk 0:02:10]}  Kxd7 {[%clk 0:00:36]} 20. Nc5+ {[%clk 0:02:11]} 1-0


[Site "https://www.chess.com"]

[Event "Titled Tuesday Blitz August 08 Early 2023"]
[White "Haukenfrers, Dale"]
[Black "KorolDimitriy75"]
[WhiteFideId "2603780"]
[WhiteElo "2138"]
[BlackElo "2384"]
[Result "0-1"]
[Round "6"]
[TimeControl "180+1"]
[Date "2023.08.08"]
[WhiteClock "0:01:13"]
[BlackClock "0:00:01"]
[Board "133"]

1. f4 {[%clk 0:03:00]}  c5 {[%clk 0:02:59]} 2. b4 {[%clk 0:02:59]}  cxb4 {[%clk 0:02:58]} 3. e4 {[%clk 0:02:59]}  d5 {[%clk 0:02:54]} 4. exd5 {[%clk 0:02:58]}  Nf6 {[%clk 0:02:42]} 5. Bb5+ {[%clk 0:02:56]}  Nbd7 {[%clk 0:02:40]} 6. Nf3 {[%clk 0:02:54]}  g6 {[%clk 0:02:39]} 7. c4 {[%clk 0:02:51]}  bxc3 {[%clk 0:02:31]} 8. dxc3 {[%clk 0:02:43]}  Bg7 {[%clk 0:02:31]} 9. c4 {[%clk 0:02:37]}  Nxd5 {[%clk 0:01:23]} 10. cxd5 {[%clk 0:02:35]}  Bxa1 {[%clk 0:01:16]} 11. Nbd2 {[%clk 0:02:35]}  O-O {[%clk 0:01:08]} 12. d6 {[%clk 0:02:26]}  exd6 {[%clk 0:01:04]} 13. Ba3 {[%clk 0:02:26]}  Re8+ {[%clk 0:00:46]} 14. Kf2 {[%clk 0:02:26]}  Bg7 {[%clk 0:00:39]} 15. Kg3 {[%clk 0:02:24]}  Qa5 {[%clk 0:00:25]} 16. Qb3 {[%clk 0:02:21]}  a6 {[%clk 0:00:24]} 17. Bc4 {[%clk 0:02:17]}  Rf8 {[%clk 0:00:13]} 18. Bxd6 {[%clk 0:02:15]}  Nf6 {[%clk 0:00:09]} 19. h4 {[%clk 0:02:12]}  Be6 {[%clk 0:00:07]} 20. Bxf8 {[%clk 0:02:10]}  Rxf8 {[%clk 0:00:05]} 21. Bxe6 {[%clk 0:02:09]}  fxe6 {[%clk 0:00:04]} 22. Qxe6+ {[%clk 0:02:08]}  Kh8 {[%clk 0:00:04]} 23. Nc4 {[%clk 0:02:02]}  Qc3 {[%clk 0:00:03]} 24. Ne5 {[%clk 0:02:00]}  Nh5+ {[%clk 0:00:03]} 25. Kh2 {[%clk 0:01:56]}  Nxf4 {[%clk 0:00:03]} 26. Qe7 {[%clk 0:01:45]}  Qc2 {[%clk 0:00:01]} 27. Rg1 {[%clk 0:01:37]}  Qf2 {[%clk 0:00:01]} 28. Nf7+ {[%clk 0:01:28]}  Kg8 {[%clk 0:00:02]} 29. N7e5 {[%clk 0:01:20]}  Ne2 {[%clk 0:00:01]} 30. Qe6+ {[%clk 0:01:18]}  Kh8 {[%clk 0:00:02]} 31. Rh1 {[%clk 0:01:13]}  Qg3# {[%clk 0:00:01]} 0-1


[Site "https://www.chess.com"]

[Event "Titled Tuesday Blitz August 08 Early 2023"]
[White "Djordjevic, Vuk"]
[Black "Preobrazhenska_D2011"]
[WhiteFideId "902098"]
[WhiteElo "2702"]
[BlackElo "2250"]
[Result "1-0"]
[Round "6"]
[TimeControl "180+1"]
[Date "2023.08.08"]
[WhiteClock "0:00:06"]
[BlackClock "0:00:03"]
[Board "134"]

1. e4 {[%clk 0:03:00]}  c5 {[%clk 0:02:59]} 2. Nc3 {[%clk 0:03:00]}  a6 {[%clk 0:02:59]} 3. g3 {[%clk 0:02:59]}  b5 {[%clk 0:02:57]} 4. Bg2 {[%clk 0:02:59]}  Bb7 {[%clk 0:02:57]} 5. Nge2 {[%clk 0:02:58]}  d6 {[%clk 0:02:56]} 6. O-O {[%clk 0:02:56]}  Nf6 {[%clk 0:02:57]} 7. Re1 {[%clk 0:02:49]}  b4 {[%clk 0:02:55]} 8. Nd5 {[%clk 0:02:47]}  Bxd5 {[%clk 0:02:52]} 9. exd5 {[%clk 0:02:48]}  Nbd7 {[%clk 0:02:53]} 10. d4 {[%clk 0:02:41]}  Nb6 {[%clk 0:02:43]} 11. Nf4 {[%clk 0:02:07]}  c4 {[%clk 0:02:37]} 12. a4 {[%clk 0:02:04]}  a5 {[%clk 0:02:36]} 13. b3 {[%clk 0:01:54]}  Qc7 {[%clk 0:02:33]} 14. g4 {[%clk 0:01:05]}  h6 {[%clk 0:02:22]} 15. h4 {[%clk 0:01:03]}  g5 {[%clk 0:02:06]} 16. hxg5 {[%clk 0:01:02]}  hxg5 {[%clk 0:02:06]} 17. Nh3 {[%clk 0:01:02]}  Nbxd5 {[%clk 0:01:56]} 18. bxc4 {[%clk 0:01:00]}  Qxc4 {[%clk 0:01:53]} 19. Nxg5 {[%clk 0:00:56]}  Nc3 {[%clk 0:01:37]} 20. Qf3 {[%clk 0:00:53]}  Ncd5 {[%clk 0:01:19]} 21. Bb2 {[%clk 0:00:24]}  Qc8 {[%clk 0:01:07]} 22. Ne4 {[%clk 0:00:19]}  Nxe4 {[%clk 0:00:35]} 23. Qxe4 {[%clk 0:00:20]}  Nb6 {[%clk 0:00:27]} 24. Qc6+ {[%clk 0:00:11]}  Qxc6 {[%clk 0:00:24]} 25. Bxc6+ {[%clk 0:00:12]}  Kd8 {[%clk 0:00:25]} 26. Bxa8 {[%clk 0:00:10]}  Nxa8 {[%clk 0:00:25]} 27. c3 {[%clk 0:00:10]}  Rh4 {[%clk 0:00:16]} 28. f3 {[%clk 0:00:05]}  Nb6 {[%clk 0:00:13]} 29. cxb4 {[%clk 0:00:05]}  axb4 {[%clk 0:00:13]} 30. a5 {[%clk 0:00:06]}  Nc4 {[%clk 0:00:13]} 31. a6 {[%clk 0:00:06]}  Nb6 {[%clk 0:00:07]} 32. d5 {[%clk 0:00:04]}  Bh6 {[%clk 0:00:05]} 33. Bd4 {[%clk 0:00:04]}  Na8 {[%clk 0:00:05]} 34. Ra4 {[%clk 0:00:03]}  Bd2 {[%clk 0:00:05]} 35. Re2 {[%clk 0:00:03]}  Bf4 {[%clk 0:00:04]} 36. Rxb4 {[%clk 0:00:03]}  Kc7 {[%clk 0:00:02]} 37. Rb7+ {[%clk 0:00:02]}  Kc8 {[%clk 0:00:03]} 38. Rc2+ {[%clk 0:00:03]}  Kd8 {[%clk 0:00:03]} 39. Rb8+ {[%clk 0:00:04]}  Kd7 {[%clk 0:00:03]} 40. Rxa8 {[%clk 0:00:05]}  Rh3 {[%clk 0:00:03]} 41. Ra7+ {[%clk 0:00:05]}  Kd8 {[%clk 0:00:03]} 42. Bb6+ {[%clk 0:00:05]}  Ke8 {[%clk 0:00:03]} 43. Rc8# {[%clk 0:00:06]} 1-0


[Site "https://www.chess.com"]

[Event "Titled Tuesday Blitz August 08 Early 2023"]
[White "Goh, Wei Ming Kevin"]
[Black "Hrbek, Stepan"]
[WhiteFideId "5800706"]
[BlackFideId "393479"]
[WhiteElo "2643"]
[BlackElo "2414"]
[Result "0-1"]
[Round "6"]
[TimeControl "180+1"]
[Date "2023.08.08"]
[WhiteClock "0:00:00"]
[BlackClock "0:00:18"]
[Board "136"]

1. e4 {[%clk 0:02:57]}  c5 {[%clk 0:03:00]} 2. Nf3 {[%clk 0:02:56]}  Nc6 {[%clk 0:03:00]} 3. Bb5 {[%clk 0:02:54]}  e6 {[%clk 0:03:00]} 4. O-O {[%clk 0:02:53]}  Nge7 {[%clk 0:03:01]} 5. Re1 {[%clk 0:02:54]}  b6 {[%clk 0:03:00]} 6. Bf1 {[%clk 0:02:55]}  d5 {[%clk 0:02:54]} 7. exd5 {[%clk 0:02:46]}  exd5 {[%clk 0:02:44]} 8. d4 {[%clk 0:02:45]}  c4 {[%clk 0:02:42]} 9. Bf4 {[%clk 0:02:39]}  Be6 {[%clk 0:02:40]} 10. c3 {[%clk 0:02:12]}  Ng6 {[%clk 0:02:35]} 11. Bg3 {[%clk 0:02:06]}  Bd6 {[%clk 0:02:35]} 12. Qa4 {[%clk 0:02:03]}  Rc8 {[%clk 0:02:26]} 13. Nbd2 {[%clk 0:01:45]}  O-O {[%clk 0:02:20]} 14. Qc2 {[%clk 0:01:45]}  Bxg3 {[%clk 0:02:16]} 15. hxg3 {[%clk 0:01:45]}  Qf6 {[%clk 0:02:16]} 16. Re3 {[%clk 0:01:43]}  b5 {[%clk 0:02:12]} 17. Rae1 {[%clk 0:01:41]}  Bf5 {[%clk 0:02:12]} 18. Qd1 {[%clk 0:01:41]}  b4 {[%clk 0:02:10]} 19. Qa4 {[%clk 0:01:39]}  a5 {[%clk 0:01:52]} 20. Qb5 {[%clk 0:01:36]}  Be6 {[%clk 0:01:46]} 21. Ne5 {[%clk 0:01:16]}  Ngxe5 {[%clk 0:01:35]} 22. dxe5 {[%clk 0:01:17]}  Qg6 {[%clk 0:01:36]} 23. Nf3 {[%clk 0:01:17]}  bxc3 {[%clk 0:01:05]} 24. bxc3 {[%clk 0:01:16]}  Qc2 {[%clk 0:01:04]} 25. R1e2 {[%clk 0:01:13]}  Qc1 {[%clk 0:01:02]} 26. Qa4 {[%clk 0:01:06]}  d4 {[%clk 0:00:58]} 27. cxd4 {[%clk 0:00:56]}  Nb4 {[%clk 0:00:58]} 28. Qxa5 {[%clk 0:00:52]}  Nd5 {[%clk 0:00:56]} 29. Re1 {[%clk 0:00:44]}  Qb2 {[%clk 0:00:37]} 30. R3e2 {[%clk 0:00:41]}  Qb7 {[%clk 0:00:37]} 31. Rc2 {[%clk 0:00:38]}  c3 {[%clk 0:00:34]} 32. Rec1 {[%clk 0:00:18]}  Bf5 {[%clk 0:00:34]} 33. Ba6 {[%clk 0:00:10]}  Qa8 {[%clk 0:00:32]} 34. Re2 {[%clk 0:00:06]}  Bd3 {[%clk 0:00:31]} 35. Ree1 {[%clk 0:00:03]}  Bxa6 {[%clk 0:00:30]} 36. e6 {[%clk 0:00:04]}  fxe6 {[%clk 0:00:27]} 37. Rxe6 {[%clk 0:00:05]}  Bc4 {[%clk 0:00:24]} 38. Qxa8 {[%clk 0:00:05]}  Rxa8 {[%clk 0:00:24]} 39. Ne5 {[%clk 0:00:02]}  Bxa2 {[%clk 0:00:24]} 40. Rc6 {[%clk 0:00:02]}  Rfb8 {[%clk 0:00:20]} 41. Nd3 {[%clk 0:00:01]}  Rb1 {[%clk 0:00:18]} 42. Rxb1 {[%clk 0:00:01]}  Bxb1 {[%clk 0:00:19]} 43. Nf4 {[%clk 0:00:01]}  Nxf4 {[%clk 0:00:18]} 44. gxf4 {[%clk 0:00:02]}  c2 {[%clk 0:00:18]} 45. Kh1 {[%clk 0:00:03]}  Re8 {[%clk 0:00:18]} 46. Kh2 {[%clk 0:00:02]}  Re1 {[%clk 0:00:18]} 47. d5 {[%clk 0:00:00]}  c1=Q {[%clk 0:00:18]} 0-1


[Site "https://www.chess.com"]

[Event "Titled Tuesday Blitz August 08 Early 2023"]
[White "Khromkin, Andrey"]
[Black "Ovchinnikov, Vsevolod"]
[WhiteFideId "4154126"]
[BlackFideId "24176842"]
[WhiteElo "2414"]
[BlackElo "2624"]
[Result "0-1"]
[Round "6"]
[TimeControl "180+1"]
[Date "2023.08.08"]
[WhiteClock "0:00:00"]
[BlackClock "0:02:26"]
[Board "137"]

1. d4 {[%clk 0:03:00]}  Nf6 {[%clk 0:02:59]} 2. c4 {[%clk 0:03:00]}  g6 {[%clk 0:02:59]} 3. Nf3 {[%clk 0:03:01]}  Bg7 {[%clk 0:02:59]} 4. Nc3 {[%clk 0:03:02]}  d5 {[%clk 0:03:00]} 5. cxd5 {[%clk 0:03:02]}  Nxd5 {[%clk 0:03:00]} 6. g3 {[%clk 0:03:03]}  O-O {[%clk 0:03:00]} 7. Bg2 {[%clk 0:03:04]}  Nb6 {[%clk 0:03:01]} 8. O-O {[%clk 0:03:04]}  Nc6 {[%clk 0:03:02]} 9. d5 {[%clk 0:03:05]}  Na5 {[%clk 0:02:58]} 10. Qc2 {[%clk 0:03:04]}  Bf5 {[%clk 0:02:52]} 11. e4 {[%clk 0:03:03]}  Bg4 {[%clk 0:02:52]} 12. h3 {[%clk 0:03:02]}  Bxf3 {[%clk 0:02:52]} 13. Bxf3 {[%clk 0:03:02]}  c6 {[%clk 0:02:53]} 14. Rd1 {[%clk 0:02:57]}  cxd5 {[%clk 0:02:50]} 15. Nxd5 {[%clk 0:00:00]}  Rc8 {[%clk 0:02:26]} 0-1


[Site "https://www.chess.com"]

[Event "Titled Tuesday Blitz August 08 Early 2023"]
[White "Ansh M Shah"]
[Black "Herman, Daniel"]
[WhiteFideId "25033379"]
[BlackFideId "30935008"]
[WhiteElo "2512"]
[BlackElo "2399"]
[Result "1-0"]
[Round "6"]
[TimeControl "180+1"]
[Date "2023.08.08"]
[WhiteClock "0:00:47"]
[BlackClock "0:00:15"]
[Board "143"]

1. d4 {[%clk 0:02:47]}  Nf6 {[%clk 0:03:00]} 2. c4 {[%clk 0:02:47]}  g6 {[%clk 0:03:00]} 3. Nc3 {[%clk 0:02:47]}  Bg7 {[%clk 0:03:00]} 4. e4 {[%clk 0:02:48]}  O-O {[%clk 0:03:00]} 5. h4 {[%clk 0:02:48]}  d6 {[%clk 0:02:53]} 6. Be2 {[%clk 0:02:49]}  c5 {[%clk 0:02:50]} 7. d5 {[%clk 0:02:47]}  e6 {[%clk 0:02:49]} 8. h5 {[%clk 0:02:38]}  exd5 {[%clk 0:02:48]} 9. exd5 {[%clk 0:02:39]}  Re8 {[%clk 0:02:34]} 10. Kf1 {[%clk 0:02:37]}  Nbd7 {[%clk 0:02:09]} 11. h6 {[%clk 0:02:32]}  Bh8 {[%clk 0:02:09]} 12. Nf3 {[%clk 0:02:33]}  a6 {[%clk 0:02:00]} 13. Bf4 {[%clk 0:02:26]}  Ne5 {[%clk 0:01:54]} 14. Nxe5 {[%clk 0:02:24]}  dxe5 {[%clk 0:01:55]} 15. Be3 {[%clk 0:02:22]}  b6 {[%clk 0:01:48]} 16. Bg5 {[%clk 0:02:20]}  e4 {[%clk 0:01:35]} 17. Qd2 {[%clk 0:02:10]}  Qd7 {[%clk 0:01:29]} 18. Re1 {[%clk 0:02:04]}  Qf5 {[%clk 0:01:25]} 19. Be3 {[%clk 0:01:51]}  b5 {[%clk 0:01:14]} 20. cxb5 {[%clk 0:01:50]}  axb5 {[%clk 0:01:15]} 21. Bxb5 {[%clk 0:01:47]}  Bd7 {[%clk 0:01:14]} 22. Bxd7 {[%clk 0:01:42]}  Nxd7 {[%clk 0:01:15]} 23. Rh4 {[%clk 0:01:32]}  Nf6 {[%clk 0:00:48]} 24. Rf4 {[%clk 0:01:23]}  Qe5 {[%clk 0:00:48]} 25. Kg1 {[%clk 0:01:20]}  g5 {[%clk 0:00:43]} 26. Rxf6 {[%clk 0:01:13]}  Bxf6 {[%clk 0:00:41]} 27. Bxc5 {[%clk 0:01:13]}  Rad8 {[%clk 0:00:34]} 28. Rxe4 {[%clk 0:01:10]}  Qf5 {[%clk 0:00:32]} 29. Rxe8+ {[%clk 0:01:06]}  Rxe8 {[%clk 0:00:33]} 30. Be3 {[%clk 0:01:02]}  Rd8 {[%clk 0:00:29]} 31. Bd4 {[%clk 0:00:49]}  Bxd4 {[%clk 0:00:19]} 32. Qxd4 {[%clk 0:00:48]}  Re8 {[%clk 0:00:15]} 33. Qg7# {[%clk 0:00:47]} 1-0


[Site "https://www.chess.com"]